lending/lending_fUSD_20250114
["ID","MTS","AMOUNT","RATE_DAILY","PERIOD"]
[348863045,1736826639583,-325.99443612,9.996e-05,2]
[348863046,1736826639592,-500.0,9.996e-05,2]
[348863047,1736826639602,-500.0,9.996e-05,2]
[348863048,1736826639611,-500.0,9.996e-05,2]
[348863049,1736826639621,-638.86,9.996e-05,2]
[348863050,1736826639630,-500.0,9.996e-05,2]
[348863051,1736826639639,-265.02473933,9.996e-05,2]
[348863052,1736826639650,-500.0,9.996e-05,2]
[348863053,1736826639659,-500.0,9.996e-05,2]
[348863054,1736826639668,-500.0,9.996e-05,2]
[348863055,1736826639677,-2157.61,9.996e-05,2]
[348863056,1736826639686,-1029.57,9.996e-05,2]
[348863057,1736826639697,-500.0,9.996e-05,2]
[348863058,1736826639706,-500.0,9.996e-05,2]
[348863059,1736826639715,-1455.89,9.996e-05,2]
[348863060,1736826639725,-566.62024579,9.996e-05,2]
[348863061,1736826639734,-500.0,9.996e-05,2]
[348863062,1736826639744,-2884.61,9.996e-05,2]
[348863063,1736826639754,-500.0,9.996e-05,2]
[348863064,1736826639765,-500.0,9.996e-05,2]
[348863065,1736826639776,-1799.2,9.996e-05,2]
[348863066,1736826639786,-507.34142793,9.996e-05,2]
[348863067,1736826639797,-500.0,9.996e-05,2]
[348863068,1736826639806,-500.0,9.996e-05,2]
[348863069,1736826639816,-135.27467052,9.996e-05,2]
[348863070,1736826639830,-364.72532948,9.996e-05,2]
[348863071,1736826639840,-2973.72710046,9.996e-05,2]
[348863072,1736826639853,-932.05612253,9.996e-05,2]
[348863073,1736826639865,-320.98638561,9.996e-05,2]
[348863074,1736826639878,-3934.3803914,9.996e-05,2]
[348863075,1736826639889,-500.0,9.996e-05,2]
[348863076,1736826639899,-504.99228936,9.996e-05,2]
[348863077,1736826639909,-500.0,9.996e-05,2]
[348863078,1736826639921,-500.0,9.996e-05,2]
[348863079,1736826639931,-500.0,9.996e-05,2]
[348863080,1736826639942,-500.0,9.996e-05,2]
[348863081,1736826639952,-500.0,9.996e-05,2]
[348863082,1736826639963,-500.0,9.996e-05,2]
[348863083,1736826639972,-500.0,9.996e-05,2]
[348863084,1736826639985,-912.44,9.996e-05,2]
[348863085,1736826639994,-500.0,9.996e-05,2]
[348863086,1736826640003,-442.28133531,9.996e-05,2]
[348863087,1736826640014,-57.71866469,9.996e-05,2]
[348863088,1736826640025,-500.0,9.996e-05,2]
[348863089,1736826640034,-1413.69571922,9.996e-05,2]
[348863090,1736826640108,-348.23005832,9.995e-05,2]
[348863091,1736826640120,-151.76994168,9.995e-05,2]
[348863092,1736826640129,-628.92681774,9.996e-05,2]
[348863093,1736826640141,-1405.70746304,9.996e-05,2]
[348863094,1736826640152,-500.0,9.996e-05,2]
[348863095,1736826640162,-500.0,9.996e-05,2]
[348863096,1736826640172,-1362.8,9.996e-05,2]
[348863097,1736826640182,-500.0,9.996e-05,2]
[348863098,1736826640191,-503.75577724,9.996e-05,2]
[348863099,1736826640200,-500.0,9.996e-05,2]
[348863100,1736826640210,-500.0,9.996e-05,2]
[348863101,1736826640219,-502.83221383,9.996e-05,2]
[348863102,1736826640229,-502.92512972,9.996e-05,2]
[348863103,1736826640238,-500.0,9.996e-05,2]
[348863104,1736826640248,-500.0,9.996e-05,2]
[348863106,1736826640258,-1914.85,9.996e-05,2]
[348863107,1736826640268,-2783.34,9.996e-05,2]
[348863108,1736826640277,-500.0,9.996e-05,2]
[348863109,1736826640287,-260.95015787,9.996e-05,2]
[348863110,1736826640296,-500.0,9.996e-05,2]
[348863111,1736826640306,-216.4823125,9.996e-05,2]
[348863112,1736826640316,-500.0,9.996e-05,2]
[348863113,1736826640325,-339.79830199,9.996e-05,2]
[348863114,1736826640335,-500.0,9.996e-05,2]
[348863115,1736826640344,-500.0,9.996e-05,2]
[348863116,1736826640354,-500.0,9.996e-05,2]
[348863117,1736826640364,-500.0,9.996e-05,2]
[348863118,1736826640373,-4122.51,9.996e-05,2]
[348863119,1736826640383,-500.0,9.996e-05,2]
[348863120,1736826640393,-503.65886067,9.996e-05,2]
[348863121,1736826640403,-592.529723,9.996e-05,2]
[348863122,1736826640413,-1430.44,9.996e-05,2]
[348863123,1736826640423,-503.69237675,9.996e-05,2]
[348863124,1736826640432,-158.091978,9.996e-05,2]
[348863125,1736826640442,-503.35221422,9.996e-05,2]
[348863126,1736826640452,-506.15944779,9.996e-05,2]
[348863127,1736826640461,-4873.23,9.996e-05,2]
[348863128,1736826640471,-503.80622689,9.996e-05,2]
[348863129,1736826640482,-506.06054084,9.996e-05,2]
[348863130,1736826640491,-157.906754,9.996e-05,2]
[348863131,1736826640502,-375.32541572,9.996e-05,2]
[348863132,1736826640512,-973.33861274,9.996e-05,2]
[348863133,1736826640524,-483.10138726,9.996e-05,2]
[348863134,1736826640534,-495.97100403,9.996e-05,2]
[348863135,1736826640547,-71.01280697,9.996e-05,2]
[348863136,1736826640557,-445.03269559,9.996e-05,2]
[348863137,1736826640567,-503.02812551,9.996e-05,2]
[348863138,1736826640576,-501.66873062,9.996e-05,2]
[348863139,1736826640585,-500.0,9.996e-05,2]
[348863140,1736826640594,-2.80764131,9.996e-05,2]
[348863141,1736826640606,-286.49996773,9.996e-05,2]
[348863142,1736826640618,-287.83239096,9.996e-05,2]
[348863143,1736826640627,-504.1110271,9.996e-05,2]
[348863144,1736826640637,-500.0,9.996e-05,2]
[348863145,1736826640648,-3493.24,9.996e-05,2]
[348863146,1736826640657,-500.0,9.996e-05,2]
[348863147,1736826640666,-500.0,9.996e-05,2]
[348863148,1736826640675,-503.38832565,9.996e-05,2]
[348863149,1736826640685,-2229.09,9.996e-05,2]
[348863150,1736826640695,-503.4734082,9.996e-05,2]
[348863151,1736826640704,-504.18107424,9.996e-05,2]
[348863152,1736826640714,-500.0,9.996e-05,2]
[348863153,1736826640723,-500.0,9.996e-05,2]
[348863154,1736826640733,-505.55865487,9.996e-05,2]
[348863155,1736826640743,-2066.73,9.997e-05,2]
[348863156,1736826640753,-988.15,9.997e-05,2]
[348863157,1736826640763,-849.25,9.997e-05,2]
[348863158,1736826640772,-909.25,9.997e-05,2]
[348863159,1736826640781,-500.0,9.997e-05,2]
[348863160,1736826640791,-1019.42,9.997e-05,2]
[348863161,1736826640801,-655.01,9.997e-05,2]
[348863162,1736826640811,-1590.21,9.997e-05,2]
[348863163,1736826640820,-1331.29,9.997e-05,2]
[348863164,1736826640829,-1962.64,9.997e-05,2]
[348863165,1736826640839,-1580.53,9.997e-05,2]
[348863166,1736826640848,-13562.3811429,9.997e-05,2]
[348863167,1736826640860,-54779.19395908,9.997e-05,2]
[348863173,1736826641413,-500.0,9.995e-05,2]
[348863174,1736826641422,-200.67550222,9.996e-05,2]
[348863175,1736826641433,-918.32449778,9.996e-05,2]
[348863176,1736826641442,-7201.36550222,9.997e-05,2]
[348863177,1736826641454,-910.363776,9.997e-05,2]
[348863178,1736826641465,-2399.38195,9.997e-05,2]
[348863179,1736826641477,-2037.32982,9.997e-05,2]
[348863180,1736826641488,-1308.581522,9.997e-05,2]
[348863182,1736826643684,-1107.51,9.995e-05,2]
[348863183,1736826643695,-500.0,9.995e-05,2]
[348863184,1736826643706,-4976.28937943,9.997e-05,2]
[348863185,1736826643718,-347.06404734,9.997e-05,2]
[348863186,1736826643732,-539.8,9.997e-05,2]
[348863187,1736826643745,-332.71918515,9.997e-05,2]
[348863188,1736826644140,-285.268048,9.997e-05,2]
[348863189,1736826644199,-871.49864553,9.997e-05,2]
[348863190,1736826644211,-529.3941732,9.997e-05,2]
[348863193,1736826646763,-823.68,9.995e-05,2]
[348863194,1736826646773,-1179.32441825,9.997e-05,2]
[348863195,1736826646784,-1267.83218458,9.997e-05,2]
[348863196,1736826646796,-1151.4223584,9.997e-05,2]
[348863197,1736826647075,-3628.99362848,9.997e-05,2]
[348863198,1736826647087,-4255.59087781,9.997e-05,2]
[348863199,1736826771541,2000.0,0.00023,120]
[348863201,1736826860900,4000.0,0.00023,120]
[348863202,1736826888903,827.34,8.219e-05,2]
[348863203,1736826965047,4000.0,0.00023,120]
[348863204,1736826970791,2098.0,0.0002,31]
[348863205,1736826993710,398.0,0.00023,120]
[348863206,1736827027778,4169.9,0.00023,120]
[348863209,1736827176139,605.15210442,0.00023,120]
[348863210,1736827280054,425.0,0.00022998,120]
[348863211,1736827289220,425.0,0.00022998,120]
[348863212,1736827383044,20000.0,0.00023,120]
[348863232,1736827764015,845.56,8.219e-05,2]
[348863243,1736827832414,-489.79570988,8.898e-05,2]
[348863244,1736827832575,-510.20429012,8.898e-05,2]
[348863245,1736827832585,-123.71356606,9e-05,2]
[348863246,1736827832597,-1238.04,9e-05,2]
[348863247,1736827832626,-773.83676388,9e-05,2]
[348863248,1736827832762,-388.59141856,9e-05,2]
[348863249,1736827832816,-2475.8182515,9e-05,2]
[348863250,1736827832826,-500.0,9e-05,2]
[348863251,1736827832835,-2000.0,9.083e-05,2]
[348863252,1736827832845,-23900.0,9.095e-05,2]
[348863253,1736827832854,-250.0,9.109e-05,2]
[348863254,1736827832864,-166.58,9.131e-05,2]
[348863255,1736827832873,-250.0,9.145e-05,2]
[348863256,1736827832883,-322.7,9.157e-05,2]
[348863257,1736827832893,-489.43,9.179e-05,2]
[348863258,1736827832903,-167.06,9.269e-05,2]
[348863259,1736827832912,-978.7,9.478e-05,2]
[348863260,1736827832922,-164.264,9.5e-05,2]
[348863261,1736827832932,-436.66,9.566e-05,2]
[348863262,1736827832943,-150.0,9.669e-05,2]
[348863263,1736827832952,-150.99,9.67e-05,2]
[348863264,1736827832963,-9999.99,9.67e-05,2]
[348863265,1736827832972,-4217.97,9.67e-05,2]
[348863266,1736827832982,-499.99,9.67e-05,2]
[348863267,1736827832992,-3897.0,9.822e-05,2]
[348863268,1736827833001,-1174.0,9.822e-05,2]
[348863269,1736827833010,-295.048,9.822e-05,2]
[348863270,1736827833020,-9631.0,9.822e-05,2]
[348863271,1736827833029,-501.0,9.836e-05,2]
[348863272,1736827833039,-500.0,9.883e-05,2]
[348863273,1736827833050,-299.99,9.992e-05,2]
[348863274,1736827833060,-150.99,9.992e-05,2]
[348863275,1736827833070,-566.2721204,9.992e-05,2]
[348863276,1736827833080,-822.2716034,9.992e-05,2]
[348863277,1736827833092,-774.5626453,9.992e-05,2]
[348863278,1736827833102,-1084.4744992,9.992e-05,2]
[348863279,1736827833112,-577.1441653,9.993e-05,2]
[348863280,1736827833122,-588.0162102,9.993e-05,2]
[348863281,1736827833132,-838.0586667,9.993e-05,2]
[348863282,1736827833143,-853.8457299,9.993e-05,2]
[348863283,1736827833153,-789.4337285,9.993e-05,2]
[348863284,1736827833162,-804.3048118,9.993e-05,2]
[348863285,1736827833172,-1105.2956822,9.993e-05,2]
[348863286,1736827833181,-1126.1168652,9.993e-05,2]
[348863287,1736827833191,-500.0,9.994e-05,2]
[348863288,1736827833202,-2204.77,9.994e-05,2]
[348863289,1736827833212,-3834.85,9.994e-05,2]
[348863290,1736827833222,-2192.78,9.994e-05,2]
[348863291,1736827833232,-500.0,9.994e-05,2]
[348863292,1736827833242,-1484.68,9.994e-05,2]
[348863293,1736827833252,-3917.58,9.994e-05,2]
[348863294,1736827833261,-500.0,9.994e-05,2]
[348863295,1736827833271,-500.0,9.994e-05,2]
[348863296,1736827833281,-1081.72,9.994e-05,2]
[348863297,1736827833291,-500.0,9.994e-05,2]
[348863298,1736827833301,-1104.17,9.994e-05,2]
[348863299,1736827833311,-500.0,9.994e-05,2]
[348863300,1736827833321,-500.0,9.994e-05,2]
[348863301,1736827833330,-500.0,9.994e-05,2]
[348863302,1736827833340,-610.33,9.995e-05,2]
[348863303,1736827833352,-2318.53,9.995e-05,2]
[348863304,1736827833362,-500.0,9.995e-05,2]
[348863305,1736827833372,-1149.35,9.995e-05,2]
[348863306,1736827833382,-1007.5,9.995e-05,2]
[348863307,1736827833392,-1724.23,9.995e-05,2]
[348863308,1736827833402,-3415.58,9.995e-05,2]
[348863309,1736827833412,-1891.4,9.995e-05,2]
[348863310,1736827833422,-4722.48437717,9.995e-05,2]
[348863311,1736827833432,-1415.61,9.995e-05,2]
[348863312,1736827833443,-742.255612,9.995e-05,2]
[348863313,1736827833453,-158.280976,9.995e-05,2]
[348863314,1736827833463,-156.080894,9.995e-05,2]
[348863315,1736827833473,-710.244503,9.995e-05,2]
[348863316,1736827833483,-3475.73,9.995e-05,2]
[348863317,1736827833494,-1117.65,9.995e-05,2]
[348863318,1736827833504,-570.76,9.995e-05,2]
[348863319,1736827833515,-500.0,9.995e-05,2]
[348863320,1736827833526,-500.0,9.995e-05,2]
[348863321,1736827833543,-4570.76,9.995e-05,2]
[348863322,1736827833560,-500.0,9.995e-05,2]
[348863323,1736827833572,-500.0,9.995e-05,2]
[348863324,1736827833582,-500.0,9.995e-05,2]
[348863325,1736827833592,-500.0,9.995e-05,2]
[348863326,1736827833603,-500.0,9.995e-05,2]
[348863327,1736827833614,-502.55447026,9.995e-05,2]
[348863328,1736827833624,-533.18766306,9.995e-05,2]
[348863329,1736827833635,-500.0,9.995e-05,2]
[348863330,1736827833645,-500.0,9.995e-05,2]
[348863331,1736827833655,-500.0,9.995e-05,2]
[348863332,1736827833664,-503.34353943,9.995e-05,2]
[348863333,1736827833674,-1366.64,9.995e-05,2]
[348863334,1736827833684,-500.0,9.995e-05,2]
[348863335,1736827833694,-500.0,9.995e-05,2]
[348863336,1736827833703,-529.90109859,9.995e-05,2]
[348863337,1736827833712,-501.11411403,9.995e-05,2]
[348863338,1736827833722,-500.0,9.995e-05,2]
[348863339,1736827833731,-501.62441516,9.995e-05,2]
[348863340,1736827833741,-500.0,9.995e-05,2]
[348863341,1736827833751,-500.89063038,9.995e-05,2]
[348863342,1736827833762,-500.0,9.995e-05,2]
[348863343,1736827833772,-500.87476838,9.995e-05,2]
[348863344,1736827833782,-153.82477832,9.995e-05,2]
[348863345,1736827833791,-500.0,9.995e-05,2]
[348863346,1736827833801,-500.0,9.995e-05,2]
[348863347,1736827833811,-500.0,9.995e-05,2]
[348863348,1736827833822,-500.0,9.995e-05,2]
[348863349,1736827833831,-500.0,9.995e-05,2]
[348863350,1736827833841,-500.0,9.995e-05,2]
[348863351,1736827833850,-500.0,9.995e-05,2]
[348863352,1736827833859,-500.0,9.995e-05,2]
[348863353,1736827833869,-500.0,9.995e-05,2]
[348863354,1736827833878,-500.0,9.995e-05,2]
[348863355,1736827833888,-6068.04,9.995e-05,2]
[348863356,1736827833897,-500.0,9.995e-05,2]
[348863357,1736827833906,-500.0,9.995e-05,2]
[348863358,1736827833917,-500.0,9.995e-05,2]
[348863359,1736827833927,-500.0,9.995e-05,2]
[348863360,1736827833937,-500.0,9.995e-05,2]
[348863361,1736827833947,-500.0,9.995e-05,2]
[348863362,1736827833957,-651.72,9.995e-05,2]
[348863363,1736827833967,-635.14,9.995e-05,2]
[348863364,1736827833976,-500.0,9.995e-05,2]
[348863365,1736827833986,-500.0,9.995e-05,2]
[348863366,1736827833995,-500.0,9.995e-05,2]
[348863367,1736827834005,-500.0,9.995e-05,2]
[348863368,1736827834015,-502.94797421,9.995e-05,2]
[348863369,1736827834024,-500.0,9.995e-05,2]
[348863370,1736827834033,-500.0,9.995e-05,2]
[348863371,1736827834043,-501.61071658,9.995e-05,2]
[348863372,1736827834053,-500.0,9.995e-05,2]
[348863373,1736827834063,-891.96,9.995e-05,2]
[348863374,1736827834073,-611.07,9.995e-05,2]
[348863375,1736827834083,-440.47831906,9.995e-05,2]
[348863376,1736827834093,-500.0,9.995e-05,2]
[348863377,1736827834103,-266.84420989,9.995e-05,2]
[348863378,1736827834113,-500.0,9.995e-05,2]
[348863379,1736827834122,-829.09,9.995e-05,2]
[348863380,1736827834132,-500.0,9.995e-05,2]
[348863381,1736827834142,-500.0,9.995e-05,2]
[348863382,1736827834152,-500.0,9.995e-05,2]
[348863383,1736827834161,-559.96,9.995e-05,2]
[348863384,1736827834172,-500.0,9.995e-05,2]
[348863385,1736827834182,-500.0,9.995e-05,2]
[348863386,1736827834192,-636.23108278,9.995e-05,2]
[348863387,1736827834202,-500.0,9.995e-05,2]
[348863388,1736827834212,-165.12457411,9.995e-05,2]
[348863389,1736827834221,-774.56,9.995e-05,2]
[348863390,1736827834232,-501.62217079,9.995e-05,2]
[348863391,1736827834241,-500.0,9.995e-05,2]
[348863392,1736827834251,-821.62,9.995e-05,2]
[348863393,1736827834261,-500.0,9.995e-05,2]
[348863394,1736827834271,-500.0,9.995e-05,2]
[348863395,1736827834281,-500.0,9.995e-05,2]
[348863396,1736827834291,-501.92,9.995e-05,2]
[348863397,1736827834301,-500.0,9.995e-05,2]
[348863398,1736827834311,-500.0,9.995e-05,2]
[348863399,1736827834321,-500.0,9.995e-05,2]
[348863400,1736827834331,-500.0,9.995e-05,2]
[348863401,1736827834341,-500.0,9.995e-05,2]
[348863402,1736827834351,-500.0,9.995e-05,2]
[348863403,1736827834360,-500.58953341,9.995e-05,2]
[348863404,1736827834369,-500.0,9.995e-05,2]
[348863405,1736827834381,-183.30475175,9.995e-05,2]
[348863406,1736827834391,-500.0,9.995e-05,2]
[348863407,1736827834400,-500.0,9.995e-05,2]
[348863408,1736827834409,-500.0,9.995e-05,2]
[348863409,1736827834419,-501.72099142,9.995e-05,2]
[348863410,1736827834429,-505.25,9.995e-05,2]
[348863411,1736827834439,-814.0,9.995e-05,2]
[348863412,1736827834448,-500.0,9.995e-05,2]
[348863413,1736827834458,-521.61,9.995e-05,2]
[348863414,1736827834468,-500.0,9.995e-05,2]
[348863415,1736827834477,-500.0,9.995e-05,2]
[348863416,1736827834487,-500.0,9.995e-05,2]
[348863417,1736827834497,-500.0,9.995e-05,2]
[348863418,1736827834506,-526.41508697,9.995e-05,2]
[348863419,1736827834516,-500.0,9.995e-05,2]
[348863420,1736827834526,-500.0,9.995e-05,2]
[348863421,1736827834540,-500.0,9.995e-05,2]
[348863422,1736827834550,-500.0,9.995e-05,2]
[348863423,1736827834559,-500.0,9.995e-05,2]
[348863424,1736827834573,-500.0,9.995e-05,2]
[348863425,1736827834585,-500.0,9.995e-05,2]
[348863426,1736827834595,-500.0,9.995e-05,2]
[348863427,1736827834604,-504.36223706,9.995e-05,2]
[348863428,1736827834614,-500.0,9.995e-05,2]
[348863429,1736827834624,-500.0,9.995e-05,2]
[348863430,1736827834634,-500.0,9.995e-05,2]
[348863431,1736827834644,-852.4,9.995e-05,2]
[348863432,1736827834653,-500.0,9.995e-05,2]
[348863433,1736827834663,-500.0,9.995e-05,2]
[348863434,1736827834673,-500.0,9.995e-05,2]
[348863435,1736827834682,-830.4,9.995e-05,2]
[348863436,1736827834691,-500.0,9.995e-05,2]
[348863437,1736827834701,-500.0,9.995e-05,2]
[348863438,1736827834711,-500.0,9.995e-05,2]
[348863439,1736827834720,-500.0,9.995e-05,2]
[348863440,1736827834730,-500.0,9.995e-05,2]
[348863441,1736827834739,-500.0,9.995e-05,2]
[348863442,1736827834748,-500.0,9.995e-05,2]
[348863443,1736827834758,-500.0,9.995e-05,2]
[348863444,1736827834767,-500.0,9.995e-05,2]
[348863445,1736827834777,-500.0,9.995e-05,2]
[348863446,1736827834786,-500.0,9.995e-05,2]
[348863447,1736827834796,-518.4218742,9.995e-05,2]
[348863448,1736827834806,-506.50938129,9.995e-05,2]
[348863449,1736827834815,-500.0,9.995e-05,2]
[348863450,1736827834825,-500.0,9.995e-05,2]
[348863451,1736827834835,-500.0,9.995e-05,2]
[348863452,1736827834846,-502.16182485,9.995e-05,2]
[348863453,1736827834856,-500.0,9.995e-05,2]
[348863454,1736827834866,-500.0,9.995e-05,2]
[348863455,1736827834875,-500.0,9.995e-05,2]
[348863456,1736827834885,-500.0,9.995e-05,2]
[348863457,1736827834895,-500.0,9.995e-05,2]
[348863458,1736827834906,-500.0,9.995e-05,2]
[348863459,1736827834916,-500.0,9.995e-05,2]
[348863460,1736827834925,-500.0,9.995e-05,2]
[348863461,1736827834935,-518.55681614,9.995e-05,2]
[348863462,1736827834945,-500.0,9.995e-05,2]
[348863463,1736827834955,-500.0,9.995e-05,2]
[348863464,1736827834964,-500.0,9.995e-05,2]
[348863465,1736827834974,-1081.19,9.995e-05,2]
[348863466,1736827834984,-500.0,9.995e-05,2]
[348863467,1736827834994,-500.0,9.995e-05,2]
[348863468,1736827835003,-500.0,9.995e-05,2]
[348863469,1736827835012,-500.0,9.995e-05,2]
[348863470,1736827835021,-505.69728196,9.995e-05,2]
[348863471,1736827835030,-500.0,9.995e-05,2]
[348863472,1736827835039,-500.0,9.995e-05,2]
[348863473,1736827835049,-1060.3,9.995e-05,2]
[348863474,1736827835059,-500.0,9.995e-05,2]
[348863475,1736827835068,-500.0,9.995e-05,2]
[348863476,1736827835077,-500.0,9.995e-05,2]
[348863477,1736827835088,-500.0,9.995e-05,2]
[348863478,1736827835098,-500.0,9.995e-05,2]
[348863479,1736827835107,-500.95433305,9.995e-05,2]
[348863480,1736827835116,-500.0,9.995e-05,2]
[348863481,1736827835125,-500.0,9.995e-05,2]
[348863482,1736827835134,-500.0,9.995e-05,2]
[348863483,1736827835144,-500.0,9.995e-05,2]
[348863484,1736827835152,-500.0,9.995e-05,2]
[348863485,1736827835161,-959.3,9.995e-05,2]
[348863486,1736827835171,-1298.06,9.995e-05,2]
[348863487,1736827835180,-518.04953543,9.995e-05,2]
[348863488,1736827835189,-503.65375219,9.995e-05,2]
[348863489,1736827835199,-500.0,9.995e-05,2]
[348863490,1736827835208,-811.28,9.995e-05,2]
[348863491,1736827835217,-1119.03,9.995e-05,2]
[348863492,1736827835226,-500.0,9.995e-05,2]
[348863493,1736827835235,-500.0,9.995e-05,2]
[348863494,1736827835246,-564.57,9.995e-05,2]
[348863495,1736827835255,-500.0,9.995e-05,2]
[348863496,1736827835264,-1833.57,9.995e-05,2]
[348863497,1736827835274,-500.0,9.995e-05,2]
[348863498,1736827835283,-500.0,9.995e-05,2]
[348863499,1736827835294,-508.06280915,9.995e-05,2]
[348863500,1736827835304,-500.0,9.995e-05,2]
[348863501,1736827835316,-504.33638045,9.995e-05,2]
[348863502,1736827835327,-267.26983023,9.995e-05,2]
[348863503,1736827835338,-500.0,9.995e-05,2]
[348863504,1736827835349,-500.0,9.995e-05,2]
[348863505,1736827835358,-500.0,9.995e-05,2]
[348863506,1736827835368,-500.0,9.995e-05,2]
[348863507,1736827835378,-500.0,9.995e-05,2]
[348863508,1736827835389,-500.0,9.995e-05,2]
[348863509,1736827835399,-500.0,9.995e-05,2]
[348863510,1736827835411,-500.0,9.995e-05,2]
[348863511,1736827835422,-500.0,9.995e-05,2]
[348863512,1736827835433,-511.65082508,9.995e-05,2]
[348863513,1736827835443,-1209.42,9.995e-05,2]
[348863514,1736827835454,-500.0,9.995e-05,2]
[348863515,1736827835465,-2750.73,9.995e-05,2]
[348863516,1736827835475,-500.0,9.995e-05,2]
[348863517,1736827835485,-500.0,9.995e-05,2]
[348863518,1736827835495,-500.0,9.995e-05,2]
[348863519,1736827835505,-500.0,9.995e-05,2]
[348863520,1736827835515,-826.51,9.995e-05,2]
[348863521,1736827835524,-500.0,9.995e-05,2]
[348863522,1736827835538,-1458.07,9.995e-05,2]
[348863523,1736827835548,-215.43068295,9.995e-05,2]
[348863524,1736827835559,-500.0,9.995e-05,2]
[348863525,1736827835569,-500.0,9.995e-05,2]
[348863526,1736827835579,-500.0,9.995e-05,2]
[348863527,1736827835588,-500.0,9.995e-05,2]
[348863528,1736827835597,-500.0,9.995e-05,2]
[348863529,1736827835607,-500.0,9.995e-05,2]
[348863530,1736827835616,-500.0,9.995e-05,2]
[348863531,1736827835626,-490.2510692,9.995e-05,2]
[348863532,1736827835635,-500.0,9.995e-05,2]
[348863533,1736827835645,-895.54,9.995e-05,2]
[348863534,1736827835654,-500.0,9.995e-05,2]
[348863535,1736827835663,-504.85314947,9.995e-05,2]
[348863536,1736827835673,-858.61,9.995e-05,2]
[348863537,1736827835683,-820.17,9.995e-05,2]
[348863538,1736827835692,-502.59274664,9.995e-05,2]
[348863539,1736827835701,-500.0,9.995e-05,2]
[348863540,1736827835711,-505.51356886,9.995e-05,2]
[348863541,1736827835720,-500.0,9.995e-05,2]
[348863542,1736827835729,-500.0,9.995e-05,2]
[348863543,1736827835739,-500.0,9.995e-05,2]
[348863544,1736827835749,-500.0,9.995e-05,2]
[348863545,1736827835758,-722.27,9.995e-05,2]
[348863546,1736827835768,-500.0,9.995e-05,2]
[348863547,1736827835778,-500.0,9.995e-05,2]
[348863548,1736827835788,-675.08,9.995e-05,2]
[348863549,1736827835798,-500.0,9.995e-05,2]
[348863550,1736827835808,-500.0,9.995e-05,2]
[348863551,1736827835818,-407.55442588,9.995e-05,2]
[348863552,1736827835828,-2310.9,9.995e-05,2]
[348863553,1736827835838,-502.59178476,9.995e-05,2]
[348863554,1736827835849,-500.0,9.995e-05,2]
[348863555,1736827835859,-500.0,9.995e-05,2]
[348863556,1736827835869,-500.0,9.995e-05,2]
[348863557,1736827835879,-500.0,9.995e-05,2]
[348863558,1736827835889,-500.0,9.995e-05,2]
[348863559,1736827835898,-500.0,9.995e-05,2]
[348863560,1736827835908,-500.0,9.995e-05,2]
[348863561,1736827835918,-500.0,9.995e-05,2]
[348863562,1736827835928,-500.0,9.995e-05,2]
[348863563,1736827835937,-3361.1,9.995e-05,2]
[348863564,1736827835946,-513.48180991,9.995e-05,2]
[348863565,1736827835956,-500.0,9.995e-05,2]
[348863566,1736827835966,-844.82,9.995e-05,2]
[348863567,1736827835975,-505.52370527,9.995e-05,2]
[348863568,1736827835984,-503.70995121,9.995e-05,2]
[348863569,1736827835994,-500.0,9.995e-05,2]
[348863570,1736827836004,-500.0,9.995e-05,2]
[348863571,1736827836014,-663.99,9.995e-05,2]
[348863572,1736827836023,-897.41,9.995e-05,2]
[348863573,1736827836032,-674.88,9.995e-05,2]
[348863574,1736827836042,-500.0,9.995e-05,2]
[348863575,1736827836051,-502.8609194,9.995e-05,2]
[348863576,1736827836061,-578.6,9.995e-05,2]
[348863577,1736827836070,-500.0,9.995e-05,2]
[348863578,1736827836082,-2200.4,9.995e-05,2]
[348863579,1736827836093,-500.0,9.995e-05,2]
[348863580,1736827836102,-500.0,9.995e-05,2]
[348863581,1736827836112,-500.0,9.995e-05,2]
[348863582,1736827836122,-501.93018528,9.995e-05,2]
[348863583,1736827836348,-500.0,9.995e-05,2]
[348863584,1736827836359,-500.0,9.995e-05,2]
[348863585,1736827836370,-668.35,9.995e-05,2]